[Event "Early-Titled-Tuesday-Blitz-June-18-2024"]
[Site "Chess.com"]
[Date "2024.06.18"]
[Round "9"]
[White "JosefineHeinemann"]
[Black "JanMur7"]
[Result "1-0"]
[WhiteElo "2483"]
[BlackElo "2265"]
[TimeControl "180+1"]
[EndTime "9:44:57 PDT"]
[Termination "JosefineHeinemann won by resignation"]

1. e4 {[%clk 0:03:00.9]} 1... g6 {[%clk 0:02:58.7]} 2. d4 {[%clk 0:02:59.7]}
2... Bg7 {[%clk 0:02:59.3]} 3. Nc3 {[%clk 0:02:59.9]} 3... c5 {[%clk 0:02:59.4]}
4. dxc5 {[%clk 0:02:58.8]} 4... Bxc3+ {[%clk 0:02:59.2]} 5. bxc3 {[%clk
0:02:58.8]} 5... Nf6 {[%clk 0:02:59.8]} 6. f3 {[%clk 0:02:57.9]} 6... Qa5 {[%clk
0:02:58.3]} 7. Be3 {[%clk 0:02:39.1]} 7... Qxc3+ {[%clk 0:02:51.3]} 8. Kf2
{[%clk 0:02:39.1]} 8... O-O {[%clk 0:02:45.4]} 9. Ne2 {[%clk 0:02:38.4]} 9...
Qa5 {[%clk 0:02:40.5]} 10. h4 {[%clk 0:02:34.8]} 10... h5 {[%clk 0:02:39.8]} 11.
Nf4 {[%clk 0:02:32.2]} 11... Nc6 {[%clk 0:02:29.8]} 12. Bd3 {[%clk 0:02:26.3]}
12... Ne5 {[%clk 0:02:17.8]} 13. Nd5 {[%clk 0:02:12.7]} 13... Nxd5 {[%clk
0:02:16.5]} 14. exd5 {[%clk 0:02:11.4]} 14... d6 {[%clk 0:02:11.3]} 15. cxd6
{[%clk 0:01:56]} 15... exd6 {[%clk 0:02:12.2]} 16. Be4 {[%clk 0:01:56]} 16...
Nc4 {[%clk 0:02:03]} 17. Bd4 {[%clk 0:01:54.5]} 17... Ne5 {[%clk 0:01:35.2]} 18.
Qc1 {[%clk 0:01:48]} 18... Qa4 {[%clk 0:01:23.8]} 19. c3 {[%clk 0:01:43.9]}
19... Qc4 {[%clk 0:01:10.4]} 20. Qh6 {[%clk 0:01:37.4]} 20... f5 {[%clk
0:00:59.8]} 21. Bc2 {[%clk 0:01:30.8]} 21... Rf6 {[%clk 0:00:39.3]} 22. Rhe1
{[%clk 0:01:21.1]} 22... Qxd5 {[%clk 0:00:35.5]} 23. Bb3 {[%clk 0:01:16.2]}
23... Nd3+ {[%clk 0:00:26.2]} 24. Kf1 {[%clk 0:01:10]} 24... Be6 {[%clk
0:00:19.3]} 1-0

[Event "Early-Titled-Tuesday-Blitz-June-18-2024"]
[Site "Chess.com"]
[Date "2024.06.18"]
[Round "9"]
[White "marvinguevara"]
[Black "maracayo"]
[Result "0-1"]
[WhiteElo "2149"]
[BlackElo "2412"]
[TimeControl "180+1"]
[EndTime "9:44:57 PDT"]
[Termination "maracayo won by resignation"]

1. e4 {[%clk 0:02:24.8]} 1... d6 {[%clk 0:02:58.3]} 2. d4 {[%clk 0:02:24.5]}
2... Nf6 {[%clk 0:02:57.4]} 3. Nc3 {[%clk 0:02:25.2]} 3... c6 {[%clk 0:02:57.3]}
4. f4 {[%clk 0:02:24.7]} 4... Qa5 {[%clk 0:02:57]} 5. Nf3 {[%clk 0:02:24.6]}
5... Nxe4 {[%clk 0:02:56]} 6. Bd2 {[%clk 0:02:21.5]} 6... Nxd2 {[%clk
0:02:55.3]} 7. Qxd2 {[%clk 0:02:22.4]} 7... Bg4 {[%clk 0:02:54.7]} 8. Be2 {[%clk
0:02:20.9]} 8... e6 {[%clk 0:02:54]} 9. O-O-O {[%clk 0:02:17.1]} 9... Nd7 {[%clk
0:02:48]} 10. Kb1 {[%clk 0:02:15.4]} 10... Bxf3 {[%clk 0:02:42.7]} 11. Bxf3
{[%clk 0:02:14.6]} 11... O-O-O {[%clk 0:02:40]} 12. Rhe1 {[%clk 0:02:11.9]}
12... d5 {[%clk 0:02:37.2]} 13. a3 {[%clk 0:02:07.3]} 13... g6 {[%clk
0:02:31.8]} 14. g4 {[%clk 0:01:59.1]} 14... Nb6 {[%clk 0:02:15.8]} 15. Be2
{[%clk 0:01:55.2]} 15... Bd6 {[%clk 0:01:58.6]} 16. f5 {[%clk 0:01:53.4]} 16...
e5 {[%clk 0:01:52]} 17. fxg6 {[%clk 0:01:47.9]} 17... hxg6 {[%clk 0:01:50.6]}
18. g5 {[%clk 0:01:48.2]} 18... Kb8 {[%clk 0:01:39.7]} 19. Ka2 {[%clk
0:01:35.7]} 19... Rxh2 {[%clk 0:01:24.9]} 20. dxe5 {[%clk 0:01:30.1]} 20... Bxa3
{[%clk 0:01:14.1]} 21. bxa3 {[%clk 0:01:21.7]} 21... Nc4 {[%clk 0:01:13.3]} 22.
Bxc4 {[%clk 0:00:15.3]} 22... Rxd2 {[%clk 0:01:10.9]} 23. Rxd2 {[%clk
0:00:16.2]} 23... Qxc3 {[%clk 0:01:09.3]} 0-1

[Event "Early-Titled-Tuesday-Blitz-June-18-2024"]
[Site "Chess.com"]
[Date "2024.06.18"]
[Round "9"]
[White "MaxLeto"]
[Black "TheAlienParty"]
[Result "0-1"]
[WhiteElo "2436"]
[BlackElo "2346"]
[TimeControl "180+1"]
[EndTime "9:44:58 PDT"]
[Termination "TheAlienParty won by checkmate"]

1. g4 {[%clk 0:02:48.7]} 1... d5 {[%clk 0:02:58.5]} 2. Bg2 {[%clk 0:02:49.2]}
2... Bxg4 {[%clk 0:02:57.7]} 3. c4 {[%clk 0:02:49.1]} 3... Nf6 {[%clk
0:02:47.7]} 4. Qb3 {[%clk 0:02:47.3]} 4... Bd7 {[%clk 0:02:34.3]} 5. cxd5 {[%clk
0:02:43.7]} 5... Na6 {[%clk 0:02:31.6]} 6. d4 {[%clk 0:02:24.7]} 6... Rb8 {[%clk
0:02:30.5]} 7. Nc3 {[%clk 0:02:21.2]} 7... e6 {[%clk 0:02:29.8]} 8. a3 {[%clk
0:02:05.6]} 8... Be7 {[%clk 0:02:21.1]} 9. Bf4 {[%clk 0:01:58]} 9... h6 {[%clk
0:02:17.7]} 10. Nf3 {[%clk 0:01:22]} 10... O-O {[%clk 0:02:16.7]} 11. Rg1 {[%clk
0:01:08.8]} 11... exd5 {[%clk 0:02:15.9]} 12. Nxd5 {[%clk 0:01:08.2]} 12... Be6
{[%clk 0:02:13.9]} 13. Nxe7+ {[%clk 0:01:04.8]} 13... Qxe7 {[%clk 0:02:13.8]}
14. Qa4 {[%clk 0:00:56.3]} 14... Rbd8 {[%clk 0:02:11.3]} 15. O-O-O {[%clk
0:00:52.8]} 15... Ne4 {[%clk 0:02:06.1]} 16. Be3 {[%clk 0:00:43.3]} 16... c5
{[%clk 0:02:05.6]} 17. Ne5 {[%clk 0:00:39.7]} 17... cxd4 {[%clk 0:02:01.7]} 18.
Bxd4 {[%clk 0:00:33.7]} 18... Nec5 {[%clk 0:01:55.7]} 19. Bxc5 {[%clk
0:00:16.2]} 19... Qxc5+ {[%clk 0:01:50.9]} 20. Kb1 {[%clk 0:00:09.1]} 20... Qxe5
{[%clk 0:01:49.8]} 21. Bxb7 {[%clk 0:00:08.8]} 21... Nc5 {[%clk 0:01:48.8]} 22.
Qxa7 {[%clk 0:00:09.1]} 22... Rxd1+ {[%clk 0:01:44.3]} 23. Rxd1 {[%clk
0:00:08.6]} 23... Qxe2 {[%clk 0:01:43.4]} 24. Rc1 {[%clk 0:00:06.5]} 24... Nb3
{[%clk 0:01:42.7]} 25. Rg1 {[%clk 0:00:03]} 25... Bf5+ {[%clk 0:01:39.8]} 26.
Ka2 {[%clk 0:00:03.1]} 26... Qc4 {[%clk 0:01:39.4]} 27. Ba6 {[%clk 0:00:02.9]}
27... Nc1+ {[%clk 0:01:38.1]} 28. Ka1 {[%clk 0:00:01.9]} 28... Qa2# {[%clk
0:01:37.9]} 0-1

[Event "Early-Titled-Tuesday-Blitz-June-18-2024"]
[Site "Chess.com"]
[Date "2024.06.18"]
[Round "9"]
[White "N18player"]
[Black "cycygogne"]
[Result "1-0"]
[WhiteElo "2535"]
[BlackElo "2228"]
[TimeControl "180+1"]
[EndTime "9:45:04 PDT"]
[Termination "N18player won by resignation"]

1. d4 {[%clk 0:02:59.3]} 1... Nf6 {[%clk 0:03:00]} 2. c4 {[%clk 0:02:58.4]} 2...
c5 {[%clk 0:03:00.6]} 3. d5 {[%clk 0:02:58]} 3... e6 {[%clk 0:03:01.1]} 4. Nc3
{[%clk 0:02:57.5]} 4... exd5 {[%clk 0:03:01.5]} 5. cxd5 {[%clk 0:02:57.8]} 5...
d6 {[%clk 0:03:02.2]} 6. g3 {[%clk 0:02:58.3]} 6... g6 {[%clk 0:03:02.3]} 7. Bg2
{[%clk 0:02:58.8]} 7... Bg7 {[%clk 0:03:02.7]} 8. Nf3 {[%clk 0:02:59.5]} 8...
O-O {[%clk 0:03:02.8]} 9. O-O {[%clk 0:03:00.2]} 9... a6 {[%clk 0:03:03.2]} 10.
a4 {[%clk 0:03:00.4]} 10... Re8 {[%clk 0:03:03.8]} 11. Bf4 {[%clk 0:03:00.7]}
11... Nh5 {[%clk 0:03:00.2]} 12. Bg5 {[%clk 0:02:48.1]} 12... Qc7 {[%clk
0:02:58.6]} 13. Nd2 {[%clk 0:02:33.6]} 13... Nd7 {[%clk 0:02:57.7]} 14. e4
{[%clk 0:02:30.6]} 14... Ne5 {[%clk 0:02:55]} 15. Qc2 {[%clk 0:02:20.8]} 15...
h6 {[%clk 0:02:51.7]} 16. Be3 {[%clk 0:02:20.1]} 16... Ng4 {[%clk 0:02:47.8]}
17. Rfe1 {[%clk 0:02:11.8]} 17... Nxe3 {[%clk 0:02:46.1]} 18. Rxe3 {[%clk
0:02:12.4]} 18... Bd4 {[%clk 0:02:45]} 19. Ree1 {[%clk 0:02:11.2]} 19... Qe7
{[%clk 0:02:41.3]} 20. Nc4 {[%clk 0:02:05.8]} 20... Rb8 {[%clk 0:02:32.3]} 21.
a5 {[%clk 0:02:05.6]} 21... Qf6 {[%clk 0:02:24]} 22. e5 {[%clk 0:01:43.3]} 22...
dxe5 {[%clk 0:02:12]} 23. Ne4 {[%clk 0:01:42.7]} 23... Qg7 {[%clk 0:02:03.4]}
24. Ncd6 {[%clk 0:01:06.9]} 24... Rf8 {[%clk 0:02:03.1]} 25. Nxc5 {[%clk
0:01:03.8]} 25... Bf5 {[%clk 0:01:48.5]} 26. Nxf5 {[%clk 0:01:02.3]} 26... gxf5
{[%clk 0:01:49.4]} 27. Nd7 {[%clk 0:01:01]} 27... Rbc8 {[%clk 0:01:46.2]} 28.
Qxf5 {[%clk 0:01:01]} 28... Nf6 {[%clk 0:01:31.1]} 29. Qxf6 {[%clk 0:00:51.4]}
29... Qxf6 {[%clk 0:01:28.2]} 30. Nxf6+ {[%clk 0:00:51.7]} 30... Kg7 {[%clk
0:01:28.9]} 31. Nd7 {[%clk 0:00:40.9]} 31... Rfd8 {[%clk 0:01:27.1]} 32. Nxe5
{[%clk 0:00:39.9]} 32... Rc2 {[%clk 0:01:26.6]} 33. Nd3 {[%clk 0:00:33.4]} 33...
Rdc8 {[%clk 0:01:24.1]} 34. Rad1 {[%clk 0:00:29.8]} 1-0

[Event "Early-Titled-Tuesday-Blitz-June-18-2024"]
[Site "Chess.com"]
[Date "2024.06.18"]
[Round "9"]
[White "DarkAlekhine"]
[Black "Shield12"]
[Result "0-1"]
[WhiteElo "2755"]
[BlackElo "2899"]
[TimeControl "180+1"]
[EndTime "9:45:12 PDT"]
[Termination "Shield12 won by resignation"]

1. e4 {[%clk 0:02:55.9]} 1... c5 {[%clk 0:02:59.6]} 2. Nf3 {[%clk 0:02:46.4]}
2... Nc6 {[%clk 0:03:00.1]} 3. Bb5 {[%clk 0:02:45.4]} 3... Nf6 {[%clk
0:02:59.7]} 4. Bxc6 {[%clk 0:02:41.4]} 4... dxc6 {[%clk 0:03:00.6]} 5. d3 {[%clk
0:02:41.8]} 5... Qc7 {[%clk 0:03:00.9]} 6. h3 {[%clk 0:02:41.4]} 6... e5 {[%clk
0:03:00.6]} 7. a4 {[%clk 0:02:40.4]} 7... c4 {[%clk 0:02:59.9]} 8. O-O {[%clk
0:02:28.4]} 8... cxd3 {[%clk 0:02:58.3]} 9. cxd3 {[%clk 0:02:29.3]} 9... Be7
{[%clk 0:02:57.8]} 10. Nbd2 {[%clk 0:02:28.7]} 10... Be6 {[%clk 0:02:52.2]} 11.
Qe2 {[%clk 0:02:26.2]} 11... O-O {[%clk 0:02:51.2]} 12. b3 {[%clk 0:02:25.9]}
12... Nd7 {[%clk 0:02:41.5]} 13. d4 {[%clk 0:02:23.9]} 13... Bf6 {[%clk
0:02:33.8]} 14. Bb2 {[%clk 0:02:22.6]} 14... Rad8 {[%clk 0:02:31]} 15. Rac1
{[%clk 0:02:17.6]} 15... Qb8 {[%clk 0:02:27.2]} 16. b4 {[%clk 0:02:05.4]} 16...
exd4 {[%clk 0:02:21.1]} 17. Bxd4 {[%clk 0:02:05]} 17... Ne5 {[%clk 0:02:14.3]}
18. Bxe5 {[%clk 0:01:56.2]} 18... Bxe5 {[%clk 0:02:14.5]} 19. Nxe5 {[%clk
0:01:55.7]} 19... Qxe5 {[%clk 0:02:15.4]} 20. Nf3 {[%clk 0:01:53.8]} 20... Qf4
{[%clk 0:02:13.4]} 21. Rc5 {[%clk 0:01:29.2]} 21... h6 {[%clk 0:02:06.6]} 22. g3
{[%clk 0:01:27.5]} 22... Qd6 {[%clk 0:02:05.2]} 23. Kg2 {[%clk 0:01:21.1]} 23...
b6 {[%clk 0:02:05.4]} 24. Rh5 {[%clk 0:00:59.9]} 24... Qxb4 {[%clk 0:02:03.2]}
25. Qe3 {[%clk 0:00:58.5]} 25... Qb2 {[%clk 0:01:34.4]} 26. Ne5 {[%clk
0:00:50.5]} 26... c5 {[%clk 0:01:26]} 27. Qf4 {[%clk 0:00:27.5]} 27... Qd2
{[%clk 0:01:17.5]} 28. Qh4 {[%clk 0:00:23.2]} 28... g5 {[%clk 0:01:13.4]} 0-1

[Event "Early-Titled-Tuesday-Blitz-June-18-2024"]
[Site "Chess.com"]
[Date "2024.06.18"]
[Round "9"]
[White "Tol_Tol"]
[Black "KinKaiser"]
[Result "0-1"]
[WhiteElo "2352"]
[BlackElo "2460"]
[TimeControl "180+1"]
[EndTime "9:45:14 PDT"]
[Termination "KinKaiser won by resignation"]

1. d4 {[%clk 0:02:59.3]} 1... d5 {[%clk 0:02:57]} 2. c4 {[%clk 0:02:59.4]} 2...
c6 {[%clk 0:02:48.6]} 3. Nf3 {[%clk 0:02:58.9]} 3... Nf6 {[%clk 0:02:45.3]} 4.
Nc3 {[%clk 0:02:59]} 4... dxc4 {[%clk 0:02:36.4]} 5. a4 {[%clk 0:02:58.8]} 5...
Bf5 {[%clk 0:02:29.8]} 6. e3 {[%clk 0:02:49.7]} 6... e6 {[%clk 0:02:22.4]} 7.
Bxc4 {[%clk 0:02:49.7]} 7... Bb4 {[%clk 0:02:18.6]} 8. O-O {[%clk 0:02:50.4]}
8... O-O {[%clk 0:02:17.3]} 9. Qb3 {[%clk 0:02:50.6]} 9... c5 {[%clk 0:02:10.4]}
10. Na2 {[%clk 0:02:46.6]} 10... Nc6 {[%clk 0:01:57.5]} 11. Nxb4 {[%clk
0:02:37.2]} 11... Na5 {[%clk 0:01:52.8]} 12. Qa2 {[%clk 0:02:32.8]} 12... cxb4
{[%clk 0:01:51.7]} 13. Ne5 {[%clk 0:02:22.5]} 13... Nxc4 {[%clk 0:01:44.4]} 14.
Qxc4 {[%clk 0:02:21.8]} 14... a5 {[%clk 0:01:41.3]} 15. Qb5 {[%clk 0:01:56.5]}
15... Rc8 {[%clk 0:01:37.6]} 16. Qxb7 {[%clk 0:01:43.8]} 16... Be4 {[%clk
0:01:32.8]} 17. Qb5 {[%clk 0:01:39.9]} 17... Rc2 {[%clk 0:01:31.5]} 18. f3
{[%clk 0:01:33.6]} 18... Bd5 {[%clk 0:01:26.6]} 19. Qd3 {[%clk 0:01:14.5]} 19...
Qc7 {[%clk 0:01:24.3]} 20. Rf2 {[%clk 0:01:12]} 20... Rxc1+ {[%clk 0:01:22.9]}
21. Rxc1 {[%clk 0:01:10]} 21... Qxc1+ {[%clk 0:01:23.8]} 22. Rf1 {[%clk
0:01:10.5]} 22... Qxb2 {[%clk 0:01:24]} 23. e4 {[%clk 0:01:08.6]} 23... Bb3
{[%clk 0:01:20.9]} 24. Rb1 {[%clk 0:01:07.1]} 24... Bc2 {[%clk 0:01:15.4]} 25.
Rxb2 {[%clk 0:01:06]} 25... Bxd3 {[%clk 0:01:15.2]} 26. Nxd3 {[%clk 0:01:06.7]}
26... Rc8 {[%clk 0:01:13.5]} 27. Nc5 {[%clk 0:01:04.7]} 27... e5 {[%clk
0:01:13.1]} 28. Nb3 {[%clk 0:00:58.4]} 28... exd4 {[%clk 0:01:03.8]} 29. Nxa5
{[%clk 0:00:49.7]} 29... d3 {[%clk 0:01:02.8]} 30. Rxb4 {[%clk 0:00:47]} 30...
d2 {[%clk 0:00:59.4]} 31. Rd4 {[%clk 0:00:45.1]} 31... Rc1+ {[%clk 0:00:57.8]}
0-1

[Event "Early-Titled-Tuesday-Blitz-June-18-2024"]
[Site "Chess.com"]
[Date "2024.06.18"]
[Round "9"]
[White "manitodeplomo"]
[Black "wonderfultime"]
[Result "0-1"]
[WhiteElo "2657"]
[BlackElo "3026"]
[TimeControl "180+1"]
[EndTime "9:45:22 PDT"]
[Termination "wonderfultime won by resignation"]

1. d4 {[%clk 0:03:00]} 1... d5 {[%clk 0:03:00.1]} 2. c4 {[%clk 0:02:59.5]} 2...
c6 {[%clk 0:03:00.6]} 3. Nf3 {[%clk 0:02:59.5]} 3... Nf6 {[%clk 0:03:01.1]} 4.
Nc3 {[%clk 0:02:59.6]} 4... a6 {[%clk 0:03:01.4]} 5. Ne5 {[%clk 0:02:56.4]} 5...
e6 {[%clk 0:02:58.2]} 6. Bg5 {[%clk 0:02:50.4]} 6... dxc4 {[%clk 0:02:57.7]} 7.
Nxc4 {[%clk 0:02:45.3]} 7... b5 {[%clk 0:02:57.3]} 8. Ne5 {[%clk 0:02:41.1]}
8... Bb7 {[%clk 0:02:54.2]} 9. e3 {[%clk 0:02:34.4]} 9... Nbd7 {[%clk
0:02:39.5]} 10. Be2 {[%clk 0:02:05.5]} 10... Nxe5 {[%clk 0:02:03.2]} 11. dxe5
{[%clk 0:02:04.9]} 11... Qxd1+ {[%clk 0:02:04.1]} 12. Rxd1 {[%clk 0:02:03.2]}
12... Nd7 {[%clk 0:02:05]} 13. f4 {[%clk 0:01:59.4]} 13... c5 {[%clk 0:02:03.9]}
14. Kf2 {[%clk 0:01:37.9]} 14... Be7 {[%clk 0:01:58.2]} 15. Bxe7 {[%clk
0:01:13.3]} 15... Kxe7 {[%clk 0:01:59.1]} 16. Bf3 {[%clk 0:01:11.5]} 16... Bxf3
{[%clk 0:01:58.5]} 17. Kxf3 {[%clk 0:01:12.4]} 17... Rhd8 {[%clk 0:01:50.8]} 18.
Ne4 {[%clk 0:01:08.5]} 18... f6 {[%clk 0:01:49.9]} 19. exf6+ {[%clk 0:01:04.1]}
19... gxf6 {[%clk 0:01:50.8]} 20. g4 {[%clk 0:00:55.8]} 20... c4 {[%clk
0:01:51]} 21. g5 {[%clk 0:00:48.2]} 21... f5 {[%clk 0:01:49.3]} 22. Ng3 {[%clk
0:00:44.4]} 22... Nc5 {[%clk 0:01:49.7]} 23. h4 {[%clk 0:00:43]} 23... Nd3
{[%clk 0:01:45.9]} 24. Rb1 {[%clk 0:00:27.8]} 24... b4 {[%clk 0:01:14.3]} 25. e4
{[%clk 0:00:22.7]} 25... fxe4+ {[%clk 0:01:13.1]} 26. Nxe4 {[%clk 0:00:22]}
26... Rd4 {[%clk 0:01:13.7]} 27. h5 {[%clk 0:00:15.1]} 27... Rf8 {[%clk
0:01:12.2]} 28. Nf6 {[%clk 0:00:14.5]} 28... Rxf4+ {[%clk 0:01:07.5]} 29. Ke3
{[%clk 0:00:14.3]} 29... h6 {[%clk 0:01:07.7]} 30. Rbf1 {[%clk 0:00:12.6]} 30...
hxg5 {[%clk 0:01:07.1]} 0-1

[Event "Early-Titled-Tuesday-Blitz-June-18-2024"]
[Site "Chess.com"]
[Date "2024.06.18"]
[Round "9"]
[White "KorolDimitriy75"]
[Black "micke12a"]
[Result "0-1"]
[WhiteElo "2500"]
[BlackElo "2387"]
[TimeControl "180+1"]
[EndTime "9:45:22 PDT"]
[Termination "micke12a won by checkmate"]

1. d4 {[%clk 0:03:00.9]} 1... Nf6 {[%clk 0:02:59.3]} 2. c4 {[%clk 0:03:00.9]}
2... g6 {[%clk 0:02:59.9]} 3. Nc3 {[%clk 0:03:01]} 3... d5 {[%clk 0:03:00.6]} 4.
cxd5 {[%clk 0:03:00.7]} 4... Nxd5 {[%clk 0:03:01.5]} 5. e4 {[%clk 0:03:00.9]}
5... Nxc3 {[%clk 0:03:02.2]} 6. bxc3 {[%clk 0:03:01.4]} 6... Bg7 {[%clk
0:03:02.9]} 7. Nf3 {[%clk 0:03:01]} 7... c5 {[%clk 0:03:03.5]} 8. Rb1 {[%clk
0:03:00.5]} 8... O-O {[%clk 0:02:55.3]} 9. Be2 {[%clk 0:02:59.9]} 9... Nc6
{[%clk 0:02:51.4]} 10. d5 {[%clk 0:02:59.8]} 10... Bxc3+ {[%clk 0:02:50.9]} 11.
Bd2 {[%clk 0:02:59.6]} 11... Bxd2+ {[%clk 0:02:51.5]} 12. Qxd2 {[%clk
0:03:00.5]} 12... Na5 {[%clk 0:02:51.8]} 13. h4 {[%clk 0:03:00.2]} 13... Bg4
{[%clk 0:02:48.4]} 14. h5 {[%clk 0:02:53.7]} 14... Bxf3 {[%clk 0:02:06.5]} 15.
gxf3 {[%clk 0:02:51.8]} 15... e5 {[%clk 0:02:03.8]} 16. hxg6 {[%clk 0:02:38.2]}
16... fxg6 {[%clk 0:02:00.6]} 17. d6 {[%clk 0:02:37]} 17... b6 {[%clk
0:01:58.3]} 18. Qd5+ {[%clk 0:02:34.7]} 18... Kg7 {[%clk 0:01:55.6]} 19. Qxe5+
{[%clk 0:02:31.9]} 19... Qf6 {[%clk 0:01:55.3]} 20. Qh2 {[%clk 0:02:14.1]} 20...
h5 {[%clk 0:01:52.5]} 21. Qg3 {[%clk 0:01:41.5]} 21... Nc6 {[%clk 0:01:48.4]}
22. Rxh5 {[%clk 0:01:34.5]} 22... Rh8 {[%clk 0:01:48.9]} 23. e5 {[%clk
0:01:11.8]} 23... Qe6 {[%clk 0:01:47.8]} 24. Rg5 {[%clk 0:00:35.9]} 24... Rh1+
{[%clk 0:01:46.3]} 25. Bf1 {[%clk 0:00:35.9]} 25... Nd4 {[%clk 0:01:37.2]} 26.
f4 {[%clk 0:00:28.8]} 26... Qxa2 {[%clk 0:01:32.1]} 27. Rxg6+ {[%clk 0:00:28.1]}
27... Kh7 {[%clk 0:01:28.7]} 28. Qd3 {[%clk 0:00:19.2]} 28... Nf3+ {[%clk
0:01:02.1]} 29. Kd1 {[%clk 0:00:15.7]} 29... Rxf1+ {[%clk 0:01:00.9]} 30. Qxf1
{[%clk 0:00:14.8]} 30... Qd2# {[%clk 0:01:00.8]} 0-1

[Event "Early-Titled-Tuesday-Blitz-June-18-2024"]
[Site "Chess.com"]
[Date "2024.06.18"]
[Round "9"]
[White "mfschulz"]
[Black "jlmanzanares"]
[Result "0-1"]
[WhiteElo "2196"]
[BlackElo "2064"]
[TimeControl "180+1"]
[EndTime "9:45:22 PDT"]
[Termination "jlmanzanares won by checkmate"]

1. e4 {[%clk 0:02:51.9]} 1... c5 {[%clk 0:02:58]} 2. Nc3 {[%clk 0:02:51.2]} 2...
d6 {[%clk 0:02:58.4]} 3. f4 {[%clk 0:02:50.7]} 3... Nc6 {[%clk 0:02:58.7]} 4.
Nf3 {[%clk 0:02:50.1]} 4... Bg4 {[%clk 0:02:57.9]} 5. Bc4 {[%clk 0:02:49.7]}
5... e6 {[%clk 0:02:57.6]} 6. O-O {[%clk 0:02:46.8]} 6... Nf6 {[%clk 0:02:57]}
7. d3 {[%clk 0:02:45.7]} 7... Nd4 {[%clk 0:02:56.7]} 8. Be3 {[%clk 0:02:35.7]}
8... Bxf3 {[%clk 0:02:53.5]} 9. gxf3 {[%clk 0:02:35.2]} 9... Be7 {[%clk
0:02:52.3]} 10. Kh1 {[%clk 0:02:35.2]} 10... a6 {[%clk 0:02:51.7]} 11. Rg1
{[%clk 0:02:33.3]} 11... b5 {[%clk 0:02:49.5]} 12. Bb3 {[%clk 0:02:32]} 12...
Qc7 {[%clk 0:02:49]} 13. Bxd4 {[%clk 0:02:29.3]} 13... cxd4 {[%clk 0:02:48.7]}
14. Ne2 {[%clk 0:02:29.4]} 14... e5 {[%clk 0:02:47.2]} 15. Rxg7 {[%clk
0:02:26.5]} 15... Rf8 {[%clk 0:02:29.4]} 16. f5 {[%clk 0:02:18]} 16... a5 {[%clk
0:02:17.8]} 17. a4 {[%clk 0:02:17.1]} 17... b4 {[%clk 0:02:13.4]} 18. Qd2 {[%clk
0:02:14.4]} 18... Nd7 {[%clk 0:02:12.8]} 19. Rxh7 {[%clk 0:02:05.4]} 19... Nc5
{[%clk 0:02:12.8]} 20. Bd5 {[%clk 0:02:05]} 20... O-O-O {[%clk 0:02:10.2]} 21.
c3 {[%clk 0:02:01.7]} 21... dxc3 {[%clk 0:02:06.7]} 22. bxc3 {[%clk 0:02:01.7]}
22... Rh8 {[%clk 0:02:01]} 23. Rxh8 {[%clk 0:02:00.4]} 23... Rxh8 {[%clk
0:02:01.9]} 24. cxb4 {[%clk 0:02:00.3]} 24... axb4 {[%clk 0:01:59.8]} 25. Qxb4
{[%clk 0:01:52.8]} 25... Nxd3 {[%clk 0:01:53.6]} 26. Qb5 {[%clk 0:01:48.8]}
26... Qc2 {[%clk 0:01:30.9]} 27. Qb7+ {[%clk 0:01:23.2]} 27... Kd8 {[%clk
0:01:30.3]} 28. Qb8+ {[%clk 0:01:22.8]} 28... Kd7 {[%clk 0:01:29.3]} 29. Qxh8
{[%clk 0:01:15.3]} 29... Qxe2 {[%clk 0:01:28.2]} 30. Qh5 {[%clk 0:01:08.6]}
30... Nf2+ {[%clk 0:01:27.8]} 31. Kg2 {[%clk 0:01:06.5]} 31... Nxe4+ {[%clk
0:01:21.1]} 32. Kh3 {[%clk 0:00:54.4]} 32... Nf2+ {[%clk 0:01:20.5]} 33. Kg3
{[%clk 0:00:53.9]} 33... Nd3 {[%clk 0:01:14]} 34. Qxf7 {[%clk 0:00:32.2]} 34...
Qf2+ {[%clk 0:01:11.8]} 35. Kg4 {[%clk 0:00:25]} 35... Qg2+ {[%clk 0:01:11.6]}
36. Kh5 {[%clk 0:00:23.3]} 36... Qg5# {[%clk 0:01:11.5]} 0-1

[Event "Early-Titled-Tuesday-Blitz-June-18-2024"]
[Site "Chess.com"]
[Date "2024.06.18"]
[Round "9"]
[White "Kotofeyca"]
[Black "FredddieCroderg"]
[Result "0-1"]
[WhiteElo "2476"]
[BlackElo "2341"]
[TimeControl "180+1"]
[EndTime "9:45:23 PDT"]
[Termination "FredddieCroderg won on time"]

1. d4 {[%clk 0:03:00.9]} 1... d5 {[%clk 0:02:58.5]} 2. c4 {[%clk 0:03:00.4]}
2... e6 {[%clk 0:02:58.8]} 3. Nc3 {[%clk 0:03:00.8]} 3... Nf6 {[%clk 0:02:58.9]}
4. cxd5 {[%clk 0:03:00.9]} 4... exd5 {[%clk 0:02:47.3]} 5. Bg5 {[%clk
0:03:00.3]} 5... Be7 {[%clk 0:02:46.6]} 6. Qc2 {[%clk 0:02:59.7]} 6... O-O
{[%clk 0:02:45.9]} 7. e3 {[%clk 0:02:59.9]} 7... Re8 {[%clk 0:02:44.9]} 8. Bd3
{[%clk 0:02:59.9]} 8... h6 {[%clk 0:02:43.4]} 9. Bh4 {[%clk 0:02:58]} 9... c5
{[%clk 0:02:43.3]} 10. dxc5 {[%clk 0:02:48.4]} 10... Nc6 {[%clk 0:02:42.5]} 11.
Nge2 {[%clk 0:02:29.9]} 11... d4 {[%clk 0:02:42.5]} 12. exd4 {[%clk 0:02:24.1]}
12... Nxd4 {[%clk 0:02:42.1]} 13. Qd1 {[%clk 0:01:30.7]} 13... Bxc5 {[%clk
0:02:36]} 14. O-O {[%clk 0:01:24.8]} 14... Bg4 {[%clk 0:02:34.6]} 15. Re1 {[%clk
0:00:14.5]} 15... Nf5 {[%clk 0:02:02.8]} 16. Bxf6 {[%clk 0:00:13.2]} 16... Qxf6
{[%clk 0:02:00.4]} 17. Ne4 {[%clk 0:00:12.3]} 17... Qb6 {[%clk 0:01:54.7]} 18.
Nxc5 {[%clk 0:00:11.8]} 18... Qxc5 {[%clk 0:01:54.2]} 19. Rc1 {[%clk 0:00:11.1]}
19... Qb6 {[%clk 0:01:53.2]} 20. Qc2 {[%clk 0:00:10.1]} 20... Nh4 {[%clk
0:01:47.8]} 21. Ng3 {[%clk 0:00:08]} 21... Rxe1+ {[%clk 0:01:40.8]} 22. Rxe1
{[%clk 0:00:07.6]} 22... Rc8 {[%clk 0:01:39.5]} 23. Qb3 {[%clk 0:00:05.5]} 23...
Qa5 {[%clk 0:01:32.2]} 24. Rf1 {[%clk 0:00:04.7]} 24... Be6 {[%clk 0:01:24.9]}
25. Qxb7 {[%clk 0:00:03.9]} 25... Qxa2 {[%clk 0:01:15]} 26. Qe4 {[%clk
0:00:03.8]} 26... Ng6 {[%clk 0:01:11.2]} 27. Nf5 {[%clk 0:00:03]} 27... Qxb2
{[%clk 0:01:07.4]} 0-1